[Event "79th LOTTO Polish-ch 2022"]
[Site "Kruszwica"]
[Date "2022.05.10"]
[Round "1.2"]
[White "Teclaf, Pawel"]
[Black "Gumularz, Szymon"]
[Result "1/2-1/2"]
[ECO "B08"]
[WhiteElo "2537"]
[BlackElo "2513"]
[Annotator "TA"]
[PlyCount "61"]
[EventDate "2022.05.10"]
[EventType "k.o."]
[EventCountry "POL"]
[SourceTitle "playchess.com"]
[Source "ChessBase"]
[SourceQuality "1"]
[TimeControl "40/5400+30:1800+30"]

{[%evp 13,61,117,119,114,160,139,159,125,150,37,25,50,43,35,45,0,14,0,48,0,0,0,0,0,0,0,0,0,0,4,18,0,12,0,21,31,43,37,31,0,0,0,0,0,0,0,0,0,0,0]} 1. e4 {[%emt 0:00:03]} d6 {[%emt 0:00:06]} 2. d4 {[%emt 0:00:16]} Nf6 {[%emt 0:00:05]} 3. Nc3 {[%emt 0:00:05]} g6 {[%emt 0:00:13]} 4. Nf3 {[%emt 0:00:32]} Bg7 {[%emt 0:00:07]} 5. Be3 {[%emt 0:00:05]} Bg4 {[%emt 0:10:52]} 6. h3 {[%emt 0:09:19]} Bxf3 {[%emt 0:00:10]} 7. Qxf3 {[%emt 0:00:02]} Nc6 {[%emt 0:01:47]} 8. O-O-O {[%emt 0:26:53] B00: Queen's Fianchetto Defence, Nimzowitsch Defence.} O-O {[%emt 0:01:59]} (8... a6 $142) 9. g4 $16 {[%emt 0:02:30]} e5 {[%emt 0:12:38] [#]} 10. dxe5 {[%emt 0:01:57] [#] White is clearly better.} Nd7 $146 {[%emt 0:04:54] [#]} ({Predecessor:} 10... Nxe5 11. Qg2 Nfd7 12. h4 Nc6 13. Nd5 Nb6 14. g5 Nxd5 15. exd5 Ne7 16. Bd3 c6 {½-½ (40) Grinberg,E (2491)-Bachmann,A (2599) Chess.com INT 2020}) 11. exd6 {[%emt 0:18:31] White is more active.} (11. h4 $1 $16) 11... Bxc3 $14 {[%emt 0:02:36]} 12. bxc3 {[%emt 0:00:09] And now Bh6 would win.} cxd6 $1 {[%emt 0:00:15]} 13. Bh6 {[%emt 0:04:37]} Qa5 {[%emt 0:11:21]} 14. Bxf8 {[%emt 0:02:33]} Rxf8 {[%emt 0:00:39]} 15. Qe3 {[%emt 0:13:03]} Qxa2 {[%emt 0:09:48]} (15... Nb6 $1 $11 {is superior.}) 16. Bb5 {[%emt 0:02:52]} (16. Kd2 $14) 16... Nb6 {[%emt 0:08:47] Strongly threatening ...Ne5.} 17. Kd2 {[%emt 0:01:18][%cal Bc1d2,Bd2e1,Be1f1,Bf1g2][%mdl 32]} Ne5 {[%emt 0:02:09]} 18. Ke1 {[%emt 0:04:32]} Qxc2 {[%emt 0:02:30]} 19. Be2 {[%emt 0:00:48]} Rc8 {[%emt 0:11:34]} 20. Rc1 {[%emt 0:00:09]} Qb2 {[%emt 0:01:01] White must now prevent ...Nec4.} 21. Qd2 {[%emt 0:00:08]} Qa3 {[%emt 0:02:26]} 22. Kf1 {[%emt 0:04:22]} Nbc4 {[%emt 0:05:20]} 23. Bxc4 {[%emt 0:00:33]} Rxc4 {[%emt 0:01:17]} 24. Kg2 {[%emt 0:00:26] Inhibits Nf3.} Rxe4 {[%emt 0:02:12]} 25. Rhd1 {[%emt 0:01:45] aiming for Ra1.} Qa4 {[%emt 0:05:17][%cal Oe4g4]} 26. Qxd6 {[%emt 0:00:52] Rd4 is the strong threat.} Rxg4+ {[%emt 0:00:59] The position is equal.} 27. hxg4 {[%emt 0:00:26] The board is on fire.} Qxg4+ {[%emt 0:00:03]} 28. Kf1 $1 {[%emt 0:00:08]} Qc4+ {[%emt 0:00:04]} 29. Kg1 {[%emt 0:00:59] White threatens Qb8+ and mate.} Qg4+ {[%emt 0:00:22]} 30. Kf1 {[%emt 0:00:08]} Qc4+ {[%emt 0:00:54]} 31. Kg1 {[%emt 0:00:08] Weighted Error Value: White=0.16 (very precise) /Black=0.06 (flawless)} 1/2-1/2

[Event "79th LOTTO Polish-ch 2022"]
[Site "Kruszwica"]
[Date "2022.05.10"]
[Round "1.2"]
[White "Janik, Igor"]
[Black "Gajewski, Grzegorz"]
[Result "1/2-1/2"]
[ECO "C52"]
[WhiteElo "2525"]
[BlackElo "2589"]
[Annotator "TA"]
[PlyCount "108"]
[EventDate "2022.05.10"]
[EventType "k.o."]
[EventCountry "POL"]
[SourceTitle "playchess.com"]
[Source "ChessBase"]
[SourceQuality "1"]
[TimeControl "40/5400+30:1800+30"]

{[%evp 14,108,-20,-6,-2,-18,-14,-31,-26,0,13,14,36,37,37,29,37,-15,0,-20,-29,-19,-23,-16,-16,-27,0,0,0,0,0,0,0,0,0,0,0,0,0,0,24,7,49,11,8,4,8,4,8,8,8,4,4,4,4,4,4,0,0,0,0,0,0,0,0,0,0,0,0,0,0,0,0,0,0,0,0,0,0,0,0,0,0,0,0,0,0,0,0,0,0,0,0,0,0,0,0]} 1. e4 {[%emt 0:00:02]} e5 {[%emt 0:00:08]} 2. Nf3 {[%emt 0:00:06]} Nc6 {[%emt 0:00:05]} 3. Bc4 {[%emt 0:00:11]} Bc5 {[%emt 0:00:10]} 4. b4 {[%emt 0:00:05]} Bxb4 {[%emt 0:01:10]} 5. c3 {[%emt 0:00:11]} Ba5 {[%emt 0:00:04]} 6. d4 {[%emt 0:00:10][%cal Bd2d4,Bd4e5,Be5d6][%mdl 32]} d6 {[%emt 0:05:01]} 7. Qb3 {[%emt 0:00:24]} Qd7 {[%emt 0:02:08]} 8. O-O {[%emt 0:00:35]} Bb6 {[%emt 0:04:59] C52: Evans Gambit Accepted: 5 c3 Ba5.} 9. Nbd2 $1 {[%emt 0:00:14][%mdl 4] now scores much better than the old 9.Bb5.} (9. Bb5 $5 {[%cal Rd4d5]}) 9... Na5 {[%emt 0:04:12]} 10. Qb1 {[%emt 0:02:23]} (10. Qc2 $5 {[%cal Rd4e5]}) 10... Ne7 {[%emt 0:07:21] Black is slightly better.} 11. dxe5 {[%emt 0:05:13] [#]} Nxc4 $146 {[%emt 0:04:17]} ({Predecessor:} 11... O-O 12. Bb5 c6 13. Bd3 Rd8 14. Nc4 Nxc4 15. Bxc4 Ng6 16. Rd1 Qg4 17. Rxd6 Rf8 {1-0 (37) Safarli,E (2593)-Nihal,S (2610) Khanty-Mansiysk 2019}) 12. Nxc4 {[%emt 0:00:28]} Qc6 {[%emt 0:24:14]} 13. exd6 {[%emt 0:06:39]} Qxc4 {[%emt 0:03:35]} 14. dxe7 {[%emt 0:00:08]} Bc5 $1 {[%emt 0:00:16] Prevents Ba3.} 15. Ne5 {[%emt 0:07:42]} ({White should try} 15. Bg5 $14) 15... Qa4 {[%emt 0:02:04]} 16. Bg5 {[%emt 0:21:13] [#] aiming for Qd3. Dancing on a razor blade.} f6 $1 {[%emt 0:00:34]} 17. Nd3 $1 {[%emt 0:01:39]} Bxe7 {[%emt 0:00:08]} 18. Bf4 {[%emt 0:01:32]} Qc4 {[%emt 0:12:33]} 19. Rd1 {[%emt 0:07:25]} O-O {[%emt 0:01:49]} 20. Qb3 {[%emt 0:00:48]} Qxb3 {[%emt 0:01:55]} 21. axb3 {[%emt 0:00:26]} Be6 {[%emt 0:02:03]} 22. c4 {[%emt 0:00:50]} c6 {[%emt 0:00:33]} 23. Be3 {[%emt 0:00:29]} Rfd8 {[%emt 0:05:28]} 24. Nf4 {[%emt 0:09:17]} ({But not} 24. Bxa7 Kf7 25. Ra5 b5 $17) 24... Bf7 {[%emt 0:01:45]} 25. Rxd8+ {[%emt 0:02:34]} Rxd8 {[%emt 0:00:17]} 26. Bxa7 {[%emt 0:01:40]} Ra8 {[%emt 0:04:16][%cal Oe7c5] [#] ...Bc5! is the strong threat.} 27. Bd4 {[%emt 0:03:30] Prevents Bc5.} Rxa1+ {[%emt 0:00:02]} 28. Bxa1 $11 {[%emt 0:00:06][%mdl 4096] Endgame KBB-KBN} b5 {[%emt 0:00:46] The position is equal.} 29. cxb5 {[%emt 0:00:17]} cxb5 {[%emt 0:00:05]} 30. Nd5 {[%emt 0:00:04]} Bxd5 {[%emt 0:00:41]} 31. exd5 {[%emt 0:00:07] KB-KB} Bc5 {[%emt 0:00:02] Prevents Bd4.} 32. g4 {[%emt 0:02:30] Black should prevent Kg2.} Kf7 {[%emt 0:00:05]} 33. Kg2 {[%emt 0:05:29] next Kf3 is good for White.} Ke7 {[%emt 0:00:09]} 34. Kf3 {[%emt 0:00:05][%cal Og4g5] With the idea g5!} Kd6 {[%emt 0:00:06]} 35. Ke4 {[%emt 0:00:16] Strongly threatening f3.} Bxf2 {[%emt 0:00:06]} 36. Bb2 {[%emt 0:01:20]} Kd7 {[%emt 0:05:32]} 37. Ba3 {[%emt 0:03:25]} g6 {[%emt 0:00:39]} 38. Bb2 {[%emt 0:00:24]} Ke7 {[%emt 0:00:29]} 39. Bc3 {[%emt 0:00:34]} Bh4 {[%emt 0:01:17]} 40. Bb4+ {[%emt 0:00:00]} Kd7 {[%emt 0:00:00]} 41. Bc5 {[%emt 0:00:20]} Be1 {[%emt 0:05:36]} 42. Be3 {[%emt 0:05:45]} Bb4 {[%emt 0:08:31]} 43. h4 {[%emt 0:08:39]} Be7 {[%emt 0:03:12]} 44. Bf2 {[%emt 0:05:23]} Bd6 {[%emt 0:00:22]} 45. Be1 {[%emt 0:01:31]} Ke7 {[%emt 0:04:49]} 46. Kd4 {[%emt 0:00:51]} Kf7 {[%emt 0:01:44]} 47. h5 {[%emt 0:00:34]} Ke7 {[%emt 0:01:02]} 48. Ba5 {[%emt 0:00:34]} Kd7 {[%emt 0:00:19]} 49. Bb6 {[%emt 0:00:59]} Ke7 {[%emt 0:01:31]} 50. Bc5 {[%emt 0:02:54]} Kd7 {[%emt 0:01:54]} 51. Bxd6 Kxd6 52. b4 f5 53. gxf5 gxf5 {( -> ...h6)} 54. h6 $1 f4 {Weighted Error Value: White=0.04 (flawless) /Black=0.04 (flawless)} 1/2-1/2

[Event "79th LOTTO Polish-ch 2022"]
[Site "Kruszwica"]
[Date "2022.05.10"]
[Round "1.2"]
[White "Kosakowski, Jakub"]
[Black "Moranda, Wojciech"]
[Result "1/2-1/2"]
[ECO "B12"]
[WhiteElo "2435"]
[BlackElo "2630"]
[Annotator "TA"]
[PlyCount "66"]
[EventDate "2022.05.10"]
[EventType "k.o."]
[EventCountry "POL"]
[SourceTitle "playchess.com"]
[Source "ChessBase"]
[SourceQuality "1"]
[TimeControl "40/5400+30:1800+30"]

{[%evp 11,66,20,27,0,0,0,0,0,0,0,0,0,-4,0,-12,-11,-21,-2,-4,-17,-17,-17,-17,-16,-14,-17,-17,-10,-10,-11,-22,-36,8,14,20,21,36,31,35,48,27,22,25,18,16,0,0,0,0,0,0,0,0,0,0,0,0]} 1. e4 {[%emt 0:00:08]} c6 {[%emt 0:00:05][%cal Bc7c6,Bc6c5][%mdl 32]} 2. d4 {[%emt 0:00:28]} d5 {[%emt 0:00:06]} 3. e5 {[%emt 0:00:35]} Bf5 {[%emt 0:00:05]} 4. Nf3 {[%emt 0:02:33]} e6 {[%emt 0:00:22]} 5. Be2 {[%emt 0:00:17]} c5 {[%emt 0:00:35]} 6. Be3 {[%emt 0:02:30]} Qb6 {[%emt 0:00:43]} 7. O-O {[%emt 0:02:37] B12: Caro-Kann: Advance Variation.} Qxb2 {[%emt 0:08:30]} 8. c4 $1 {[%emt 0:01:12]} Ne7 {[%emt 0:00:54]} ({Don't take} 8... Qxa1 9. Qb3 Nd7 10. Nc3 dxc4 11. Bxc4 Qxf1+ 12. Bxf1 $16) 9. Nbd2 {[%emt 0:01:21][%cal Bb1d2,Bd2b3,Bb3c5,Bc5d3][%mdl 32] [#] Strongly threatening Qa4+.} Nbc6 {[%emt 0:02:22][%cal Rc5d4]} 10. Nb3 {[%emt 0:00:17]} dxc4 {[%emt 0:03:20]} 11. Bxc4 {[%emt 0:00:14]} Rd8 {[%emt 0:01:47]} 12. Nxc5 {[%emt 0:00:20]} Nd5 {[%emt 0:00:29] [#] And now ...Bxc5 would win.} 13. Bxd5 $146 {[%emt 0:00:32]} ({Predecessor:} 13. Nd3 Qa3 14. Rc1 Be7 15. Qd2 O-O 16. h3 Be4 17. Bb3 Bxf3 18. gxf3 Nb6 19. Qc3 {0-1 (37) Kosteniuk,A (2507)-Kacheishvili,G (2575) Las Vegas 2010}) 13... Rxd5 {[%emt 0:06:14]} 14. Nd3 {[%emt 0:01:48]} Qa3 {[%emt 0:04:56]} 15. Nf4 {[%emt 0:00:12]} Rd7 {[%emt 0:02:11]} 16. d5 {[%emt 0:01:25]} Be4 $1 {[%emt 0:01:49][%cal Re4d5]} 17. Rb1 {[%emt 0:00:44]} Bxd5 {[%emt 0:08:46]} ({Of course not} 17... exd5 $6 18. Rb3 Qxa2 19. e6 fxe6 20. Nd4 Nxd4 21. Bxd4 $17) ({Reject} 17... Bxb1 $6 18. Qxb1 exd5 19. e6 fxe6 20. Nxe6 $15) 18. Nxd5 {[%emt 0:00:52]} Rxd5 {[%emt 0:01:03]} 19. Qc2 {[%emt 0:00:40]} Qa6 {[%emt 0:08:45]} 20. Rfd1 {[%emt 0:03:20]} Rxd1+ {[%emt 0:04:02]} 21. Rxd1 {[%emt 0:00:13][%cal Bb1d1,Bd1d7,Bd7a7][%mdl 32] aiming for Qd2.} Be7 {[%emt 0:02:01]} (21... Bb4 $5 {[%cal Re8g8]}) 22. Nd4 $1 {[%emt 0:11:24]} O-O {[%emt 0:11:06]} 23. Nxc6 {[%emt 0:02:55]} bxc6 {[%emt 0:00:45]} 24. Rd7 {[%emt 0:02:42][%csl LRa7,LRe7]} Bb4 {[%emt 0:09:16][%cal Oc6c5]} 25. Rxa7 {[%emt 0:11:50]} Qb5 {[%emt 0:00:15]} 26. a3 {[%emt 0:15:06]} Ba5 {[%emt 0:00:12]} 27. h3 {[%emt 0:01:14] With the idea Qc5.} Rb8 {[%emt 0:04:39] The position is equal.} 28. Qe4 {[%emt 0:09:59] Hoping for a4.} Bb6 {[%emt 0:05:01]} 29. a4 {[%emt 0:23:13]} Qb3 {[%emt 0:01:04]} 30. Bxb6 {[%emt 0:02:13]} Qxb6 {[%emt 0:00:12]} 31. Rd7 {[%emt 0:00:20]} Qb1+ {[%emt 0:00:18]} 32. Qxb1 {[%emt 0:00:07]} Rxb1+ {[%emt 0:00:06]} 33. Kh2 {[%emt 0:00:05][%cal Rd7d8]} g5 {[%emt 0:04:56] Weighted Error Value: White=0.02 (flawless) /Black=0.02 (flawless)} 1/2-1/2

[Event "79th LOTTO Polish-ch 2022"]
[Site "Kruszwica"]
[Date "2022.05.10"]
[Round "1.2"]
[White "Szpar, Milosz"]
[Black "Socko, Bartosz"]
[Result "0-1"]
[ECO "C02"]
[WhiteElo "2434"]
[BlackElo "2636"]
[Annotator "TA"]
[PlyCount "76"]
[EventDate "2022.05.10"]
[EventType "k.o."]
[EventCountry "POL"]
[SourceTitle "playchess.com"]
[Source "ChessBase"]
[SourceQuality "1"]
[TimeControl "40/5400+30:1800+30"]

{[%evp 13,76,-11,31,9,9,14,17,6,15,7,0,0,0,0,0,0,0,-6,0,0,5,0,0,-3,0,-10,0,0,0,0,12,8,18,0,0,0,0,0,0,0,0,0,0,-7,0,0,0,-88,-92,-102,-92,-76,-81,-1504,-1497,-1495,-1494,-1390,-1354,-29985,-29986,-29992,-29993,-29993,-684]} 1. e4 {[%emt 0:00:06]} e6 {[%emt 0:00:07]} 2. d4 {[%emt 0:00:21]} d5 {[%emt 0:00:05]} 3. e5 {[%emt 0:01:20]} c5 {[%emt 0:00:23]} 4. c3 {[%emt 0:02:18]} Nc6 {[%emt 0:00:11]} 5. Nf3 {[%emt 0:00:11]} Bd7 {[%emt 0:00:05]} 6. Be2 {[%emt 0:01:04]} Nge7 {[%emt 0:00:06]} 7. O-O {[%emt 0:01:08]} Ng6 {[%emt 0:00:06]} 8. Na3 {[%emt 0:03:21] C02: French: Advance Variation.} Be7 {[%emt 0:05:34]} 9. Nc2 {[%emt 0:00:20]} O-O {[%emt 0:00:18]} 10. Re1 {[%emt 0:00:30] The position is equal.} cxd4 {[%emt 0:01:29]} 11. cxd4 {[%emt 0:00:26]} Qb6 $5 {[%emt 0:01:40][%mdl 4] [#] An interesting side line.} 12. Bd2 $146 {[%emt 0:11:02][%cal Ob2b4]} ({Predecessor:} 12. Bd3 f5 13. exf6 Rxf6 14. Ng5 h6 15. Qh5 Be8 16. Nxe6 Nge5 17. Qh3 Nxd3 18. Qxd3 Nb4 {0-1 (18) Zallio,L (2061)-Reis,P (2376) Salvador 2010}) 12... Na5 {[%emt 0:06:30]} 13. Bc3 {[%emt 0:08:59]} Rfc8 {[%emt 0:06:37]} 14. g3 {[%emt 0:09:12]} Bb5 {[%emt 0:03:20]} 15. h4 {[%emt 0:03:28][%cal Bh2h4,Bh4h5][%mdl 32]} Bxe2 {[%emt 0:01:42]} 16. Rxe2 {[%emt 0:02:37]} Nc4 {[%emt 0:00:42]} 17. h5 {[%emt 0:03:39]} Nf8 {[%emt 0:01:58]} 18. Rb1 {[%emt 0:06:08]} h6 {[%emt 0:03:35]} 19. Nfe1 {[%emt 0:04:15]} a5 {[%emt 0:01:39]} 20. Nd3 {[%emt 0:03:25]} Qc7 {[%emt 0:03:57]} 21. Be1 {[%emt 0:09:44]} b5 {[%emt 0:03:39]} 22. b3 {[%emt 0:03:37]} Na3 {[%emt 0:01:56]} 23. Rc1 {[%emt 0:01:25] Hoping for Nxa3.} Qb6 {[%emt 0:00:07]} 24. Nxa3 {[%emt 0:01:08]} Bxa3 {[%emt 0:00:07]} 25. Rxc8 {[%emt 0:00:40]} Rxc8 {[%emt 0:00:05]} 26. Rc2 {[%emt 0:00:35]} Rxc2 {[%emt 0:02:14]} 27. Qxc2 {[%emt 0:00:17]} Qxd4 {[%emt 0:01:00]} 28. Bxa5 {[%emt 0:00:34]} Qe4 {[%emt 0:03:16]} 29. Bc7 {[%emt 0:03:48]} Nh7 {[%emt 0:04:24] Threatens to win with ...Ng5.} 30. Bd6 {[%emt 0:11:31] [#]} (30. Bb6 $11 {keeps the balance.}) 30... Ng5 $1 $17 {[%emt 0:00:44] ...Nf3+ is the strong threat.} 31. Qd1 {[%emt 0:02:52]} ({Wrong is} 31. Bxa3 $2 Nf3+ 32. Kf1 Nd4 $19) 31... Nf3+ {[%emt 0:11:00]} 32. Kf1 {[%emt 0:00:05] [#]} b4 $1 {[%emt 0:01:30] 0x0.000a7a3673eedp-1022s more active pieces.} 33. Qe2 $2 {[%emt 0:04:41][%mdl 8192] [#] Loses the game.} (33. Nf4 $17) 33... Nh2+ $1 $19 {[%emt 0:05:18]} 34. Ke1 {[%emt 0:00:03]} Qh1+ {[%emt 0:00:10]} 35. Kd2 {[%emt 0:00:04]} Nf3+ {[%emt 0:01:05]} ({Weaker is} 35... Qa1 36. Qd1 Qxa2+ 37. Ke3 $15) 36. Ke3 {[%emt 0:00:06]} d4+ {[%emt 0:00:04] Black mates.} 37. Kf4 {[%emt 0:00:06]} Ng1 {[%emt 0:00:13]} ({Inferior is} 37... Qxh5 38. g4 g5+ 39. Kxf3 $11) 38. Qg4 {[%emt 0:02:55]} Nh3+ {[%emt 0:00:11] Weighted Error Value: White=0.54/Black=0.02 (flawless)} (38... Qg2 $142 39. Qe2 Nxe2+ 40. Kg4 Qe4+ 41. Nf4 Ng1 42. Kh4 Qf5 43. g4 Qxf4 44. Be7 Qxf2#) 0-1

[Event "79th LOTTO Polish-ch 2022"]
[Site "Kruszwica"]
[Date "2022.05.10"]
[Round "1.2"]
[White "Sabuk, Piotr"]
[Black "Wojtaszek, Radoslaw"]
[Result "0-1"]
[ECO "E47"]
[WhiteElo "2420"]
[BlackElo "2696"]
[Annotator "TA"]
[PlyCount "96"]
[EventDate "2022.05.10"]
[EventType "k.o."]
[EventCountry "POL"]
[SourceTitle "playchess.com"]
[Source "ChessBase"]
[SourceQuality "1"]
[TimeControl "40/5400+30:1800+30"]

{[%evp 12,96,5,12,12,12,11,19,11,14,8,0,22,0,7,8,15,7,12,9,8,4,4,0,0,0,7,15,19,11,19,-17,-11,-17,-11,-16,-32,-62,-67,-158,-83,-107,-108,-116,-115,-164,-150,-210,-218,-231,-231,-231,-231,-231,-231,-231,-231,-231,-231,-241,-218,-382,-362,-362,-267,-289,-256,-475,-302,-404,-395,-466,-461,-494,-464,-547,-521,-866,-813,-776,-747,-12841,-12841,-12841,-12842,-12842,-12842]} 1. d4 {[%emt 0:00:03]} Nf6 {[%emt 0:00:04]} 2. c4 {[%emt 0:00:10]} e6 {[%emt 0:00:04]} 3. Nc3 {[%emt 0:00:09]} Bb4 {[%emt 0:00:05]} 4. e3 {[%emt 0:00:13]} O-O {[%emt 0:00:10]} 5. Bd3 {[%emt 0:00:12]} c5 {[%emt 0:00:42]} 6. Nf3 {[%emt 0:00:39]} d5 {[%emt 0:00:06]} 7. cxd5 {[%emt 0:00:43]} exd5 {[%emt 0:00:08] E53: Nimzo-Indian: Rubinstein: Main Line (4...0-0 5 Nf3 d5 6 Bd3 c5 7 0-0).} 8. dxc5 {[%emt 0:00:49]} Nbd7 {[%emt 0:00:10]} 9. O-O {[%emt 0:00:52]} (9. Qb3 Qa5 $15) 9... Bxc3 $5 {[%emt 0:05:19][%mdl 4] The position is equal. Leaves trodden paths.} 10. bxc3 {[%emt 0:04:49]} Nxc5 {[%emt 0:00:06]} 11. Be2 {[%emt 0:11:00]} Bg4 {[%emt 0:09:27]} 12. c4 {[%emt 0:01:25]} (12. Ba3 $5 {[%cal Ra3c5]} Qc7 13. Rc1 $11) 12... dxc4 {[%emt 0:06:20]} 13. Bxc4 {[%emt 0:00:37]} Rc8 {[%emt 0:00:22]} (13... Qb6 {is more complex.} 14. Ba3 Nfe4 15. Qe2 Qa5) 14. Qxd8 {[%emt 0:18:41]} Rfxd8 {[%emt 0:00:23] [#]} 15. Nd4 $146 {[%emt 0:01:42]} ({Predecessor:} 15. Bb2 Bxf3 16. gxf3 Na4 17. Bxf6 gxf6 18. Rfc1 Rc5 19. Rc2 Rdc8 20. Rac1 b5 21. Bb3 Rxc2 22. Rxc2 Rxc2 23. Bxc2 {½-½ (39) Lupulescu,C (2652)-Grischuk,A (2777) Chess.com INT 2020}) 15... Ne6 {[%emt 0:07:52]} 16. Bxe6 {[%emt 0:06:22]} Bxe6 {[%emt 0:00:24]} 17. Bb2 {[%emt 0:02:00]} Bd7 {[%emt 0:20:32]} 18. a4 {[%emt 0:06:04][%cal Ba2a4,Ba4a5,Ba5a6][%mdl 32]} Rc4 {[%emt 0:02:51]} 19. a5 {[%emt 0:00:54]} Rdc8 {[%emt 0:00:07]} 20. Rfb1 {[%emt 0:02:07]} b5 {[%emt 0:04:53]} 21. a6 {[%emt 0:11:42]} (21. axb6 $5 axb6 22. f3 $14) 21... Nd5 {[%emt 0:01:34]} 22. Rd1 {[%emt 0:04:32][%cal Od4b5]} b4 {[%emt 0:04:42]} 23. Nb3 {[%emt 0:08:15]} Be6 {[%emt 0:01:31]} 24. Bd4 {[%emt 0:00:40]} Nc3 {[%emt 0:01:22]} 25. Re1 {[%emt 0:07:33]} ({Better is} 25. Rd2 $15) 25... Nb5 {[%emt 0:02:38]} (25... R4c6 $142 26. Bxc3 Rxc3) 26. h3 {[%emt 0:01:57]} Rc2 {[%emt 0:08:25]} 27. Ra5 {[%emt 0:01:48]} Bc4 {[%emt 0:00:26]} (27... Bxb3 28. Rxb5 Be6 29. Rxb4 $16) 28. Rb1 {[%emt 0:05:22]} (28. g4 $17) 28... Nc3 $19 {[%emt 0:04:19]} 29. Bxc3 {[%emt 0:01:42]} (29. Na1 $17 {is a better defense.} Nxb1 30. Nxc2) 29... bxc3 {[%emt 0:01:13]} (29... Rxc3 30. Nd2 $11) 30. Nd4 {[%emt 0:00:14]} Rb2 {[%emt 0:01:14]} 31. Rc1 {[%emt 0:00:53]} Bd3 {[%emt 0:01:39]} 32. Ra3 {[%emt 0:01:44]} Rb1 {[%emt 0:00:06]} 33. Rxb1 {[%emt 0:00:03]} Bxb1 {[%emt 0:00:04][%mdl 4096] Endgame KRB-KRN} 34. Ne2 {[%emt 0:00:17]} c2 {[%emt 0:00:36]} 35. Nc1 {[%emt 0:00:26] [#]} Rd8 {[%emt 0:00:25] Strongly threatening ...Rd1+.} 36. Kh2 $2 {[%emt 0:01:19]} (36. Rd3 Rxd3 37. Nxd3) 36... Rd1 {[%emt 0:02:34]} 37. Rc3 {[%emt 0:00:25] Rc8+ would kill now.} h5 {[%emt 0:00:07]} 38. Nb3 {[%emt 0:00:17]} h4 {[%emt 0:02:13]} ({Stronger than} 38... Ba2 39. Rxc2 Bxb3 40. Rc7 $17) 39. Rc7 $2 {[%emt 0:00:47]} (39. g3) 39... Kh7 {[%emt 0:00:40]} (39... Ba2 $2 40. Rc8+ Kh7 41. Rxc2 Bxb3 42. Rc7 $19) 40. Rc4 {[%emt 0:00:00]} ({Don't go for} 40. Rxa7 $2 Ba2 41. Nc1 Rxc1 $19) 40... g5 {[%emt 0:00:00]} 41. Rc6 {[%emt 0:12:55]} Kg7 {[%emt 0:02:37] Black is clearly winning.} ({Wrong is} 41... Ba2 $2 42. Rxc2 Bxb3 43. Rc7 $19) 42. Rc5 {[%emt 0:00:20]} Kf6 {[%emt 0:00:55]} 43. Rc7 {[%emt 0:08:05]} Ke5 {[%emt 0:07:13]} 44. f4+ {[%emt 0:03:16]} gxf4 {[%emt 0:03:41]} 45. exf4+ {[%emt 0:00:04]} Kd6 {[%emt 0:01:02]} 46. Rxa7 {[%emt 0:02:00] [#]} Ba2 $1 {[%emt 0:00:06]} 47. Ra8 {[%emt 0:00:30]} Bxb3 {[%emt 0:00:10]} 48. a7 {[%emt 0:00:07]} Ra1 {[%emt 0:00:27] Weighted Error Value: White=0.51/Black=0.11 (very precise)} 0-1

[Event "79th LOTTO Polish-ch 2022"]
[Site "Kruszwica"]
[Date "2022.05.10"]
[Round "1.3"]
[White "Bartel, Mateusz"]
[Black "Warakomski, Tomasz"]
[Result "1/2-1/2"]
[ECO "B60"]
[WhiteElo "2619"]
[BlackElo "2534"]
[Annotator "TA"]
[PlyCount "59"]
[EventDate "2022.05.10"]
[EventType "k.o."]
[EventCountry "POL"]
[SourceTitle "playchess.com"]
[Source "ChessBase"]
[SourceQuality "1"]
[TimeControl "40/5400+30:1800+30"]

{[%evp 14,59,39,30,53,0,32,47,31,-20,21,23,56,59,56,9,15,8,62,63,76,69,73,86,85,64,57,62,79,55,59,43,62,37,46,28,29,27,34,17,33,30,38,0,22,0,44,0]} 1. e4 {[%emt 1:15:42]} c5 {[%emt 1:15:42]} 2. Nf3 {[%emt 0:00:22]} d6 {[%emt 0:00:32]} 3. d4 {[%emt 0:00:27]} cxd4 {[%emt 0:00:22]} 4. Nxd4 {[%emt 0:00:23]} Nf6 {[%emt 0:00:22]} 5. Nc3 {[%emt 0:00:21]} Nc6 {[%emt 0:00:22]} 6. Bg5 {[%emt 0:00:23]} Bd7 {[%emt 0:00:29]} 7. Bxf6 {[%emt 0:00:23]} gxf6 {[%emt 0:00:22]} 8. Nf5 {[%emt 0:00:22]} Qa5 {[%emt 0:00:45] B60: Sicilian: Richter-Rauzer: Unusual Black 6th moves and 6...Bd7 without 7 Qd2.} 9. Qd5 {[%emt 0:03:03]} (9. Bb5 $14) 9... Qxd5 {[%emt 0:01:27]} (9... Qb6 $5 {[%cal Rb6b2]} 10. Bb5 a6 11. Bxc6 Bxc6 $11) 10. Nxd5 {[%emt 0:00:24] [#] Nc7+ is the strong threat. Pair of Knights!} O-O-O {[%emt 0:00:25] Against Nc7. White must now prevent ...e6.} 11. Nfe3 {[%emt 0:00:35] [#]} ({White should play} 11. Ng3 $14) 11... Kb8 $146 {[%emt 0:02:25]} (11... e6 $5 {[%cal Re6d5]} 12. Nf4 (12. Nxf6 Bg7 $15) 12... Ne5 $11) ({Predecessor:} 11... Bg7 12. O-O-O e6 13. Nc3 Bh6 14. Rxd6 Ne5 15. Be2 Bc6 16. Rxd8+ Rxd8 17. Rd1 Rg8 {½-½ (33) Mazi,L (2375)-Pitl,G (2376) Austria 2011}) 12. Be2 {[%emt 0:01:15]} Bg7 {[%emt 0:03:12]} 13. O-O-O {[%emt 0:01:37]} Rhg8 {[%emt 0:02:00]} 14. Bh5 {[%emt 0:00:52]} (14. Rhe1 $14) 14... e6 $1 $11 {[%emt 0:01:36]} 15. Nc3 {[%emt 0:00:24]} Bh6 {[%emt 0:00:21]} (15... f5 $1 $11) 16. g3 $14 {[%emt 0:00:56]} Rg5 {[%emt 0:00:32]} 17. Be2 {[%emt 0:00:37]} Be8 {[%emt 0:01:17]} 18. f4 {[%emt 0:00:24]} Rc5 {[%emt 0:00:46]} 19. a3 {[%emt 0:01:59] White is more active.} (19. Nc4 {looks sharper.} Kc7 20. a3 Na5 21. Nxa5 Rxa5 22. b4) 19... Bf8 {[%emt 0:00:54]} 20. Rd3 {[%emt 0:00:22]} Rc8 {[%emt 0:01:14]} 21. Rhd1 {[%emt 0:01:25]} Na5 {[%emt 0:00:48]} 22. Kb1 {[%emt 0:03:24]} Be7 {[%emt 0:00:33]} 23. h4 {[%emt 0:02:01]} a6 {[%emt 0:00:49]} 24. Bg4 {[%emt 0:00:34]} Nc4 {[%emt 0:00:40]} 25. Nxc4 {[%emt 0:01:04]} Rxc4 {[%emt 0:00:21]} 26. Re1 {[%emt 0:00:40]} Bd7 {[%emt 0:00:58]} 27. Bh5 Be8 {[%emt 0:00:34]} 28. Bg4 {[%emt 0:01:47]} Bd7 {[%emt 0:00:22]} 29. Bh5 Be8 {[%emt 0:00:56]} 30. Bg4 {[%emt 0:00:45] Weighted Error Value: White=0.17 (very precise) /Black=0.13 (very precise)} 1/2-1/2